bitfinex-derivatives/quotes_ETHF0:USTF0_20210405
["timestamp","ask_amount","ask_price","bid_price","bid_amount"]
[1617603924544,1.0111,2007.2,2006.5,83.3706]
[1617603924740,30.0,2007.8,2006.5,85.1569]
[1617603924940,0.9842,2007.9,2006.5,85.1569]
[1617603925140,15.5698,2009.2,2006.5,85.1569]
[1617603925341,2.90695,2006.6,2006.5,85.1569]
[1617603927346,2.90695,2006.6,2006.5,88.06385]
[1617603927546,2.0,2008.7,2006.5,88.06385]
[1617603927945,43.5698,2009.2,2006.5,88.06385]
[1617603928145,2.0,2009.1,2006.5,88.06385]
[1617603928345,2.0,2009.1,2006.5,4.69325]
[1617603928746,2.0,2009.1,2007.7,70.3636]
[1617603928948,30.0,2009.2,2007.7,72.9152]
[1617603929146,32.0,2009.5,2007.7,72.9152]
[1617603929346,2.90695,2007.8,2007.7,72.9152]
[1617603931346,2.90695,2007.8,2007.7,73.9166]
[1617603931548,2.90695,2007.8,2007.7,72.9152]
[1617603931746,0.9967,2009.7,2007.7,72.9152]
[1617603931946,2.0,2010.1,2007.7,72.9152]
[1617603932147,30.0,2010.0,2007.7,72.9152]
[1617603932361,2.0,2009.9,2007.7,72.9152]
[1617603932548,30.0,2009.8,2007.7,70.3636]
[1617603932746,2.0,2009.7,2007.7,70.3636]
[1617603932947,32.0,2009.7,2007.7,70.3636]
[1617603933345,2.90695,2007.8,2007.7,70.3636]
[1617603934149,4.90375,2007.8,2007.6,2.90695]
[1617603934348,4.90375,2007.8,2007.1,68.7322]
[1617603934547,4.90375,2007.8,2004.8,0.994]
[1617603934747,4.90375,2007.8,2007.3,76.0833]
[1617603935347,1.9968,2007.8,2007.5,2.90695]
[1617603935548,0.9959,2008.9,2007.5,2.90695]
[1617603936351,2.0,2009.1,2007.5,2.90695]
[1617603936850,31.0024,2009.7,2007.5,2.90695]
[1617603937051,2.0,2009.8,2007.5,5.29255]
[1617603937250,2.90695,2008.2,2008.0,2.90695]
[1617603937453,2.90695,2008.2,2008.0,4.71665]
[1617603938053,2.90695,2008.2,2008.1,78.6413]
[1617603941459,2.90695,2008.2,2008.1,80.4062]
[1617603945360,2.90695,2008.2,2008.1,83.31315]
[1617603945561,2.90695,2008.2,2008.1,4.67185]
[1617603946361,2.90695,2008.2,2008.1,2.90695]
[1617603946960,2.90695,2008.2,2008.1,5.09745]
[1617603949163,2.90695,2008.2,2008.1,2.90695]
[1617603950365,2.90695,2008.2,2008.0,72.6723]
[1617603950578,2.90695,2008.2,2007.0,58.4906]
[1617603951463,1.8971,2008.6,2007.5,2.90695]
[1617603951863,0.9815,2009.0,2007.5,2.90695]
[1617603952064,0.9951,2009.6,2007.9,73.9934]
[1617603952263,3.7885,2009.9,2007.9,73.9934]
[1617603952464,2.0,2009.9,2007.9,73.9934]
[1617603952664,2.0,2009.9,2007.9,76.0943]
[1617603953364,2.90695,2008.0,2007.9,76.0943]
[1617603953564,2.90695,2008.0,2007.9,2.1009]
[1617603953764,2.90695,2008.0,2007.5,2.90695]
[1617603955165,3.90135,2008.0,2007.5,2.90695]
[1617603955364,72.8792,2009.2,2007.8,2.90695]
[1617603955566,72.8792,2009.2,2007.8,4.94315]
[1617603957366,2.90695,2007.9,2007.8,4.94315]
[1617603958966,2.0,2010.2,2007.8,4.94315]
[1617603959166,2.0,2010.2,2008.3,73.1909]
[1617603959366,2.0,2010.2,2008.3,74.981]
[1617603959571,2.0,2010.2,2008.4,2.90695]
[1617603961468,2.90695,2008.5,2008.4,2.90695]
[1617603970978,3.89555,2008.5,2008.4,2.90695]
[1617603971177,2.90695,2008.5,2008.4,2.90695]
[1617603973079,1.005,2009.3,2008.4,2.90695]
[1617603973280,1.005,2009.3,2008.5,82.0525]
[1617603973481,1.005,2009.3,2009.2,2.90695]
[1617603973680,1.005,2009.3,2009.2,5.66015]
[1617603975181,1.005,2009.3,2009.2,2.90695]
[1617603984591,1.005,2009.3,2009.2,4.92315]
[1617603987096,1.005,2009.3,2009.2,63.15055]
[1617603991599,0.005,2009.3,2009.2,63.15055]
[1617603994705,2.77285,2009.4,2009.2,63.15055]
[1617603996607,2.77285,2009.4,2009.2,60.2436]
[1617604001615,2.77285,2009.4,2009.2,2.0162]
[1617604001815,2.77285,2009.4,2007.8,58.1487]
[1617604003618,30.0,2009.4,2008.1,2.90695]
[1617604004016,2.0,2009.5,2008.1,2.90695]
[1617604004817,32.0,2009.5,2008.1,2.90695]
[1617604005718,2.90695,2008.2,2008.1,2.90695]
[1617604008621,0.9955,2008.8,2008.1,2.90695]
[1617604008821,0.9955,2008.8,2008.1,5.73305]
[1617604009121,0.9892,2009.6,2008.1,5.73305]
[1617604009722,0.9892,2009.6,2008.6,2.90695]
[1617604011323,0.9892,2009.6,2009.1,70.4844]
[1617604011523,0.9892,2009.6,2009.1,73.0651]
[1617604011723,0.9892,2009.6,2009.2,2.90695]
[1617604013725,2.90695,2009.3,2009.2,2.90695]
[1617604014528,0.9988,2010.9,2009.2,2.90695]
[1617604015627,0.9988,2010.9,2009.8,2.90695]
[1617604015826,0.9988,2010.9,2009.8,4.92225]
[1617604016027,0.9988,2010.9,2010.2,67.7212]
[1617604017630,3.90615,2010.3,2010.2,70.62815]
[1617604018030,0.9988,2010.9,2010.2,70.62815]
[1617604018832,0.9988,2010.9,2010.2,2.90695]
[1617604019643,0.9988,2010.9,2010.8,2.90695]
[1617604019836,0.9988,2010.9,2010.8,5.44865]
[1617604020533,0.9988,2010.9,2010.8,2.5417]
[1617604020733,0.9988,2010.9,2009.9,5.21849586]
[1617604021134,0.9988,2010.9,2010.2,65.4577]
[1617604021735,2.90695,2010.3,2010.2,65.4577]
[1617604021935,2.90695,2010.3,2010.0,2.90695]
[1617604022338,3.90365,2010.3,2010.2,64.1886]
[1617604022743,2.90695,2010.3,2010.2,64.1886]
[1617604023141,2.90695,2010.3,2010.0,2.90695]
[1617604023742,5.28765,2010.3,2010.0,2.90695]
[1617604023942,6.29585,2010.3,2009.6,5.22062272]
[1617604024143,6.29585,2010.3,2009.5,68.03690586]
[1617604024342,2.0,2010.2,2009.5,68.03690586]
[1617604024545,30.0,2010.1,2009.5,62.8161]
[1617604024743,2.0,2010.0,2009.5,62.8161]
[1617604025644,2.90695,2009.6,2009.5,62.8161]
[1617604026646,2.9988,2010.9,2009.2,8.12823595]
[1617604026845,2.9988,2010.9,2010.0,56.5865]
[1617604027448,0.9988,2010.9,2010.0,56.5865]
[1617604027646,2.90695,2010.1,2010.0,56.5865]
[1617604028548,0.9988,2010.9,2010.0,56.5865]
[1617604029746,0.9988,2010.9,2010.1,2.90695]
[1617604030746,30.01449849,2012.8,2010.1,2.90695]
[1617604030747,2.0,2012.4,2010.1,8.12020117]
[1617604031147,2.0,2012.4,2010.2,5.2110484]
[1617604031346,2.0,2012.4,2010.2,7.8029484]
[1617604031745,2.0,2012.4,2011.1,74.0403]
[1617604032047,2.0,2012.4,2011.1,76.6084]
[1617604032447,32.0,2012.4,2011.1,76.6084]
[1617604033847,3.90395,2011.2,2011.1,76.6084]
[1617604034552,3.90395,2011.2,2011.1,74.0403]
[1617604036553,3.90395,2011.2,2009.4,5.16942369]
[1617604036753,3.90395,2011.2,2009.2,6.31818451]
[1617604036754,6.37925,2011.2,2009.3,5.17021943]
[1617604037153,6.37925,2011.2,2009.1,6.31915709]
[1617604037154,36.37925,2011.2,2009.1,5.17385156]
[1617604037454,2.0,2011.1,2009.0,5.17552135]
[1617604037653,32.0,2011.1,2009.0,5.17552135]
[1617604037855,3.4723,2011.2,2009.9,2.90695]
[1617604038253,3.4723,2011.2,2009.5,1.004]
[1617604038454,3.4723,2011.2,2009.8,81.1855]
[1617604038655,5.4723,2011.2,2009.8,81.1855]
[1617604038854,5.4723,2011.2,2009.8,82.1905]
[1617604039055,5.4723,2011.2,2009.8,81.1855]
[1617604039856,5.4723,2011.2,2009.7,2.90695]
[1617604040056,2.997,2011.2,2010.7,64.0471]
[1617604040457,0.997,2011.2,2010.5,2.6847]
[1617604041861,0.997,2011.2,2010.7,2.90695]
[1617604042065,0.997,2011.2,2009.7,71.9394]
[1617604043065,30.997,2011.2,2009.7,71.9394]
[1617604043262,2.0,2011.1,2009.7,71.9394]
[1617604043464,30.0,2011.0,2008.5,5.18258596]
[1617604043662,68.8008,2010.5,2008.5,5.18258596]
[1617604043862,68.8008,2010.5,2009.4,2.90695]
[1617604043863,71.8032,2010.5,2009.4,2.90695]
[1617604044064,32.0,2010.4,2009.4,2.90695]
[1617604045868,2.90695,2009.5,2009.4,2.90695]
[1617604046774,2.90695,2009.5,2008.3,5.18612375]
[1617604046974,2.90695,2009.5,2008.4,5.18589521]
[1617604047875,0.9982,2010.2,2009.3,2.90695]
[1617604048075,2.0,2010.4,2009.3,2.90695]
[1617604048774,32.0,2010.4,2008.4,5.18472186]
[1617604049175,82.5938,2009.9,2008.3,5.18621064]
[1617604049375,30.0,2009.8,2008.3,5.18621064]
[1617604049575,30.0,2009.8,2007.0,77.5736]
[1617604049576,30.0,2009.8,2008.0,5.19094028]
[1617604049776,2.0,2009.7,2008.0,5.19094028]
[1617604049980,32.0,2009.7,2008.4,2.90695]
[1617604050581,33.0046,2009.7,2008.4,2.90695]
[1617604051982,2.90695,2008.5,2008.4,2.90695]
[1617604053486,4.97455,2008.5,2008.4,2.90695]
[1617604055086,4.97455,2008.5,2007.6,5.19789461]
[1617604055485,4.97455,2008.5,2007.5,5.19794515]
[1617604055886,2.0676,2008.5,2008.0,2.90695]
[1617604057887,2.90695,2008.1,2008.0,2.90695]
[1617604058488,2.0,2009.6,2008.0,2.90695]
[1617604058690,109.6525,2009.8,2008.0,2.90695]
[1617604058691,79.6525,2009.8,2008.0,5.29255]
[1617604059089,79.6525,2009.8,2008.1,5.20207022]
[1617604059490,79.6525,2009.8,2008.2,5.20186832]
[1617604059889,79.6525,2009.8,2008.9,2.90695]
[1617604060089,79.6525,2009.8,2008.9,5.31325]
[1617604061192,79.6525,2009.8,2008.9,2.90695]
[1617604061790,79.6525,2009.8,2008.9,5.54895]
[1617604061993,2.90695,2009.0,2008.9,5.54895]
[1617604062594,2.0,2010.1,2008.9,5.54895]
[1617604062795,87.2862,2010.5,2008.9,5.54895]
[1617604062995,2.0,2010.4,2008.9,5.54895]
[1617604063996,2.0,2010.4,2009.3,2.90695]
[1617604064198,32.0,2010.4,2009.3,2.90695]
[1617604065397,2.0,2010.4,2009.3,2.90695]
[1617604065999,2.90695,2009.4,2009.3,2.90695]
[1617604075115,57.2862,2010.5,2009.3,2.90695]
[1617604076116,57.2862,2010.5,2010.1,2.90695]
[1617604076317,0.997,2011.2,2010.1,2.90695]
[1617604077520,0.997,2011.2,2009.8,71.8509]
[1617604078218,2.90695,2010.0,2009.8,71.8509]
[1617604078920,2.90695,2010.0,2009.6,2.90695]
[1617604079121,2.90695,2010.0,2009.0,5.20152528]
[1617604079722,2.90695,2010.0,2008.8,70.28218129]
[1617604080122,2.90695,2010.0,2008.9,5.20196769]
[1617604080321,59.66,2010.3,2009.3,2.90695]
[1617604080521,58.6777,2010.3,2009.3,2.90695]
[1617604081422,59.667,2010.3,2009.3,2.90695]
[1617604081622,30.0,2010.2,2009.0,5.2041184]
[1617604082224,2.90695,2009.1,2008.9,2.90695]
[1617604082424,5.33105,2009.1,2008.9,2.90695]
[1617604086732,5.33105,2009.1,2008.6,5.20280321]
[1617604087134,5.33105,2009.1,2008.5,5.20286559]
[1617604087333,5.33105,2009.1,2008.4,5.2032948]
[1617604087733,5.33105,2009.1,2008.2,5.20387364]
[1617604088133,5.33105,2009.1,2008.1,65.71702276]
[1617604088333,2.4241,2009.1,2008.2,2.90695]
[1617604088532,32.0,2009.5,2008.2,2.90695]
[1617604090334,2.90695,2008.3,2008.2,2.90695]
[1617604090937,5.05795,2008.3,2008.2,2.90695]
[1617604092538,6.04145,2008.3,2008.2,2.90695]
[1617604092738,6.04145,2008.3,2008.0,5.20440384]
[1617604093038,6.04145,2008.3,2007.9,5.20630682]
[1617604093538,3.89045,2008.3,2007.9,5.20630682]
[1617604094342,2.90695,2008.0,2007.9,5.20630682]
[1617604094543,2.90695,2008.0,2007.9,6.37080235]
[1617604095143,5.66225,2008.0,2007.8,6.37121762]
[1617604095443,5.66225,2008.0,2007.9,5.21331145]
[1617604095844,5.66225,2008.0,2007.8,6.37199547]
[1617604096244,2.90695,2008.0,2007.8,6.37199547]
[1617604096644,2.90695,2008.0,2007.9,6.3715563]
[1617604098146,2.998,2009.6,2007.9,2.1926]
[1617604098344,2.998,2009.6,2008.4,2.90695]
[1617604098544,2.0,2009.6,2008.4,2.90695]
[1617604099045,2.0,2009.6,2008.4,4.65945]
[1617604099446,2.9992,2009.6,2008.5,5.21226929]
[1617604099645,2.0,2009.9,2008.5,6.20026929]
[1617604099847,2.0,2009.9,2008.7,5.21172644]
[1617604100446,2.90695,2008.8,2008.7,5.21172644]
[1617604100847,2.90695,2008.8,2008.6,5.21189193]
[1617604101248,2.90695,2008.8,2008.7,5.21168565]
[1617604101647,2.90695,2008.8,2008.6,6.3697606]
[1617604101847,2.90695,2008.8,2008.7,5.2116931]
[1617604102248,2.90695,2008.8,2008.6,6.36972432]
[1617604102448,2.90695,2008.8,2008.7,9.27655128]
[1617604102649,0.9847,2009.7,2008.7,9.27655128]
[1617604102848,2.0,2010.4,2009.2,66.3582]
[1617604103048,0.9873,2010.5,2009.2,68.633]
[1617604103248,0.9873,2010.5,2009.2,73.84692789]
[1617604103648,0.9873,2010.5,2009.3,5.21371524]
[1617604103948,0.9873,2010.5,2009.4,5.21383377]
[1617604104348,2.90695,2009.5,2009.4,5.21383377]
[1617604104548,3.88935,2009.5,2009.4,5.21383377]
[1617604104750,3.88935,2009.5,2009.2,5.21390837]
[1617604105152,3.88935,2009.5,2009.0,5.21278663]
[1617604105749,3.88935,2009.5,2008.5,72.4792]
[1617604105750,3.88935,2009.5,2009.1,5.21262505]
[1617604105950,3.88935,2009.5,2009.0,5.21281472]
[1617604106351,2.90695,2009.1,2009.0,5.21281472]
[1617604107554,2.90695,2009.1,2008.9,5.21311691]
[1617604107955,2.90695,2009.1,2008.8,5.21312792]
[1617604108654,2.89695,2009.1,2008.9,5.21307348]
[1617604109554,2.89695,2009.1,2009.0,5.21283085]
[1617604112354,2.89695,2009.1,2009.0,8.11978085]
[1617604113556,2.89695,2009.1,2008.9,5.21258734]
[1617604113756,4.82045,2009.1,2008.9,5.21258734]
[1617604113957,4.82045,2009.1,2007.5,9.84568856]
[1617604113958,4.82045,2009.1,2008.8,5.21295817]
[1617604114357,4.82045,2009.1,2008.7,5.21299966]
[1617604115359,2.89695,2009.1,2008.7,5.21299966]
[1617604115564,2.89695,2009.1,2008.6,5.21434508]
[1617604116360,2.90695,2008.7,2008.6,5.21434508]
[1617604116560,2.90695,2008.7,2008.4,88.99128844]
[1617604116561,2.90695,2008.7,2008.5,6.37284891]
[1617604117763,2.90695,2008.7,2008.6,6.37278697]
[1617604119664,2.90695,2008.7,2008.5,6.3728315]
[1617604121066,2.90695,2008.7,2008.6,5.21443329]
[1617604123668,2.90695,2008.7,2008.5,6.37304202]
[1617604124068,2.90695,2008.7,2008.6,5.21423072]
[1617604124268,2.90695,2008.7,2008.3,67.51095]
[1617604124269,2.90695,2008.7,2008.5,6.37298631]
[1617604125771,2.90695,2008.7,2008.5,7.54909445]
[1617604126573,2.90695,2008.7,2008.6,2.90695]
[1617604126774,0.9974,2009.0,2008.6,12.16921388]
[1617604126973,0.9824,2009.5,2008.6,12.16921388]
[1617604127174,0.9824,2009.5,2009.2,5.22764524]
[1617604127373,0.9824,2009.5,2009.2,75.15614524]
[1617604127575,0.9824,2009.5,2009.4,5.22729731]
[1617604127976,0.9824,2009.5,2009.3,6.38863509]
[1617604128578,2.90695,2009.4,2009.2,76.31702962]
[1617604129576,2.90695,2009.4,2009.3,6.38861176]
[1617604129977,2.90695,2009.4,2009.2,69.9285]
[1617604130581,2.90695,2009.4,2009.3,2.90695]
[1617604131283,2.90695,2009.4,2009.2,69.9285]
[1617604132481,2.90695,2009.4,2009.2,72.83545]
[1617604133889,2.90695,2009.4,2009.2,2.8495]
[1617604134087,2.90695,2009.4,2009.0,7.55017494]
[1617604134287,5.34445,2009.4,2009.0,7.55017494]
[1617604134488,2.4375,2009.4,2009.3,6.38831065]
[1617604134888,2.4375,2009.4,2008.6,60.1091]
[1617604134889,2.4375,2009.4,2009.2,6.38878139]
[1617604135288,4.4375,2009.4,2009.3,5.22735436]
[1617604135487,4.4375,2009.4,2008.6,60.1091]
[1617604135488,4.4375,2009.4,2009.2,5.2276611]
[1617604136491,2.90695,2009.3,2009.2,5.2276611]
[1617604136899,2.90695,2009.3,2009.1,6.38924237]
[1617604137890,2.90695,2009.3,2009.2,6.39045067]
[1617604138290,2.90695,2009.3,2009.0,2.5634]
[1617604139095,2.90695,2009.3,2009.0,10.11425375]
[1617604141296,2.90695,2009.3,2009.2,57.9763]
[1617604142597,2.90695,2009.3,2009.2,60.88325]
[1617604143299,2.90695,2009.3,2009.2,68.42817836]
[1617604144504,0.9873,2010.5,2009.2,10.45187836]
[1617604144703,2.90695,2009.8,2009.2,10.45187836]
[1617604144904,2.90695,2009.8,2009.5,7.53940076]
[1617604145104,2.997,2011.2,2009.8,77.9761]
[1617604145706,2.997,2011.2,2010.2,5.21827107]
[1617604145905,2.997,2011.2,2010.2,7.67747107]
[1617604146105,2.997,2011.2,2010.3,5.21719806]
[1617604146705,2.90695,2010.4,2010.2,2.4592]
[1617604146908,3.90735,2010.4,2010.2,2.4592]
[1617604147106,2.90695,2010.4,2010.3,5.21523643]
[1617604147507,2.90695,2010.4,2010.2,8.83272732]
[1617604148408,2.90695,2010.4,2010.2,2.4592]
[1617604148609,2.90695,2010.4,2010.1,5.20592451]
[1617604148807,2.90695,2010.4,2010.0,5.20633165]
[1617604149308,2.90695,2010.4,2009.9,5.20793665]
[1617604149708,2.90695,2010.4,2009.7,5.21100706]
[1617604150108,2.90695,2010.4,2009.8,5.20724714]
[1617604150708,2.90695,2009.9,2009.8,5.20724714]
[1617604151510,2.90695,2009.9,2009.7,6.35833075]
[1617604151809,2.90695,2009.9,2009.7,5.20449938]
[1617604152209,2.90695,2009.9,2009.6,5.20580168]
[1617604159821,2.90695,2009.9,2009.3,58.98695]
[1617604159822,2.90695,2009.9,2009.5,5.19865452]
[1617604160723,2.90695,2009.6,2009.5,5.19865452]
[1617604161720,2.90695,2009.6,2009.3,62.43391107]
[1617604162021,2.90695,2009.6,2009.4,5.20058481]
[1617604162221,3.88725,2009.6,2009.4,5.20058481]
[1617604162423,2.90695,2009.6,2009.5,5.20175176]
[1617604164723,2.90695,2009.6,2009.4,6.36508013]
[1617604167529,1.0094,2009.7,2009.4,6.36508013]
[1617604167731,32.0,2011.1,2009.5,6.35642661]
[1617604167930,82.979,2010.7,2009.5,6.35642661]
[1617604168131,2.0,2010.6,2009.7,5.19719483]
[1617604168531,2.0,2010.6,2009.8,5.19650423]
[1617604168731,2.90695,2009.9,2009.8,5.19650423]
[1617604170531,2.90695,2009.9,2009.3,56.08]
[1617604170532,2.90695,2009.9,2009.7,5.19436758]
[1617604170833,2.90695,2009.9,2009.6,5.19369914]
[1617604172131,2.90695,2009.9,2009.5,5.17776691]
[1617604172832,2.90695,2009.6,2009.5,5.17776691]
[1617604174233,5.22125,2009.6,2009.5,5.17776691]
[1617604176939,2.90695,2009.6,2009.5,5.17776691]
[1617604179540,2.90695,2009.6,2009.4,6.34554345]
[1617604182245,2.90695,2009.6,2009.5,6.35629935]
[1617604182644,2.90695,2009.6,2009.3,58.98695]
[1617604183345,2.90695,2009.6,2009.5,6.34691324]
[1617604184348,2.90695,2009.6,2009.3,58.98695]
[1617604185347,83.9796,2010.7,2009.3,58.98695]
[1617604185548,1.0006,2010.7,2009.3,5.03885]
[1617604185747,2.997,2011.2,2010.2,58.1412]
[1617604185748,0.997,2011.2,2010.2,58.1412]
[1617604185949,0.997,2011.2,2010.2,60.3278]
[1617604186551,0.997,2011.2,2010.2,65.51281915]
[1617604186951,2.90695,2010.3,2010.2,65.51281915]
[1617604187350,2.90695,2010.3,2010.2,7.37161915]
[1617604187750,2.90695,2010.3,2010.2,5.18501915]
[1617604187951,2.90695,2010.3,2010.0,5.18199444]
[1617604188350,2.90695,2010.3,2009.9,61.8921]
[1617604188351,2.90695,2010.3,2009.9,67.07621938]
[1617604188758,3.88735,2010.3,2009.9,61.8921]
[1617604188952,2.90695,2010.0,2009.9,61.8921]
[1617604191254,2.90695,2010.0,2009.8,5.178206]
[1617604193154,2.90695,2010.0,2009.7,5.17051568]
[1617604194456,2.90695,2010.0,2009.8,5.17898565]
[1617604197560,0.9804,2010.3,2009.8,5.17898565]
[1617604197761,0.9804,2010.3,2009.9,5.19691605]
[1617604197962,0.997,2011.2,2009.9,7.02371605]
[1617604198161,0.997,2011.2,2010.5,81.6293]
[1617604198361,0.997,2011.2,2010.5,83.748]
[1617604198961,2.90695,2010.6,2010.5,83.748]
[1617604201164,2.90695,2010.6,2010.5,81.6293]
[1617604202268,2.90695,2010.6,2009.8,5.18107607]
[1617604202665,32.90695,2010.6,2009.7,5.17768228]
[1617604202885,2.0,2010.5,2009.7,5.17768228]
[1617604203081,2.90695,2009.8,2009.5,5.17858786]
[1617604203271,35.96415,2009.8,2009.5,5.17858786]
[1617604203469,35.96415,2009.8,2009.3,5.18009471]
[1617604203967,35.96415,2009.8,2009.0,5.18217173]
[1617604204374,5.96415,2009.8,2009.0,5.18217173]
[1617604204580,35.96415,2009.8,2009.0,5.18217173]
[1617604204777,35.96415,2009.8,2009.1,5.17693553]
[1617604204981,2.90695,2009.2,2009.1,5.17693553]
[1617604205177,81.71235,2009.2,2009.1,5.17693553]
[1617604205468,81.71235,2009.2,2009.0,5.18222924]
[1617604205770,81.71235,2009.2,2008.9,5.18177435]
[1617604206169,81.71235,2009.2,2009.0,5.18056868]
[1617604207270,81.71235,2009.2,2008.9,5.17896926]
[1617604207471,81.71235,2009.2,2008.9,4.68026926]
[1617604207672,111.71235,2009.2,2008.9,4.68026926]
[1617604207872,111.71235,2009.2,2008.6,6.33237061]
[1617604208169,113.71235,2009.2,2008.6,6.33237061]
[1617604208370,113.71235,2009.2,2008.5,6.33445729]
[1617604208770,113.71235,2009.2,2008.4,6.33518378]
[1617604208969,2.90695,2008.5,2008.4,6.33518378]
[1617604209170,2.90695,2008.5,2008.1,6.34204469]
[1617604209171,36.10385,2008.5,2008.1,6.34204469]
[1617604209372,66.4616,2008.2,2008.1,6.34204469]
[1617604209571,67.4592,2008.2,2008.1,4.06664469]
[1617604209973,67.4592,2008.2,2007.7,2.33407993]
[1617604210373,30.0,2008.1,2007.7,2.33407993]
[1617604210572,30.0,2008.1,2007.3,7.50347164]
[1617604210974,30.0,2008.1,2007.4,0.25360486]
[1617604211572,30.0,2008.1,2007.3,0.2535977]
[1617604211772,67.4592,2008.2,2007.4,63.0395]
[1617604211773,0.9976,2008.2,2007.4,63.0395]
[1617604212173,0.9976,2008.2,2007.5,0.25357628]
[1617604212974,2.90695,2007.6,2007.5,3.16052628]
[1617604214176,76.8355,2009.0,2007.5,2.90695]
[1617604214376,0.9974,2009.2,2008.4,74.5215]
[1617604214578,0.9974,2009.2,2008.4,76.4837]
[1617604215077,2.0,2009.6,2008.4,76.4837]
[1617604215078,2.90695,2008.5,2008.4,76.4837]
[1617604215478,2.90695,2008.5,2008.4,1.9622]
[1617604215679,2.90695,2008.5,2007.9,2.90695]
[1617604216979,2.90695,2008.0,2007.9,2.90695]
[1617604221287,2.90695,2008.0,2007.8,66.8823]
[1617604227794,3.7931,2009.0,2007.8,66.8823]
[1617604228394,1.0089,2009.0,2007.8,66.8823]
[1617604229094,1.0089,2009.0,2008.2,2.90695]
[1617604229897,1.0089,2009.0,2007.9,2.7514]
[1617604231100,2.90695,2008.0,2007.8,66.8823]
[1617604233199,5.14225,2008.0,2007.8,66.8823]
[1617604235100,5.14225,2008.0,2007.3,2.90695]
[1617604236500,5.14225,2008.0,2007.4,81.3783]
[1617604237300,2.90695,2007.5,2007.4,81.3783]
[1617604237903,2.90695,2007.5,2007.3,2.90695]
[1617604238101,0.984,2008.2,2007.5,78.1712]
[1617604238301,1.0089,2009.0,2007.5,80.028]
[1617604238502,68.0473,2009.8,2007.5,80.028]
[1617604238905,0.995,2009.8,2007.5,1.8568]
[1617604239103,0.995,2009.8,2009.0,71.1507]
[1617604239307,2.90695,2009.1,2009.0,73.209]
[1617604240807,0.995,2009.8,2009.0,73.209]
[1617604241208,0.995,2009.8,2009.3,2.90695]
[1617604241607,0.995,2009.8,2009.0,73.209]
[1617604243209,1.0046,2010.7,2009.6,2.90695]
[1617604243409,2.0,2011.0,2009.6,2.90695]
[1617604243410,32.0,2011.0,2009.6,4.94005]
[1617604243809,32.0,2011.0,2010.0,61.0553]
[1617604244610,0.997,2011.2,2010.0,61.0553]
[1617604245211,2.997,2011.2,2010.3,2.90695]
[1617604245411,2.997,2011.2,2010.0,61.0553]
[1617604246515,32.997,2011.2,2010.0,61.0553]
[1617604247215,2.90695,2010.1,2010.0,61.0553]
[1617604247615,5.59515,2010.1,2008.1,5.1387646]
[1617604247818,35.59515,2010.1,2008.5,80.9655]
[1617604248819,5.59515,2010.1,2008.5,80.9655]
[1617604249220,62.9061,2010.2,2009.5,2.90695]
[1617604249419,2.0,2010.8,2009.5,2.90695]
[1617604249820,2.0,2010.8,2009.8,69.7053]
[1617604250219,0.989,2010.8,2009.8,69.7053]
[1617604250420,0.997,2011.2,2009.8,71.8008]
[1617604251222,0.997,2011.2,2010.3,2.90695]
[1617604251421,0.997,2011.2,2010.3,4.72055]
[1617604252520,0.997,2011.2,2009.8,69.7053]
[1617604252721,3.235,2011.2,2009.8,69.7053]
[1617604252922,30.0,2011.1,2009.8,69.7053]
[1617604253325,2.90695,2009.9,2009.8,69.7053]
[1617604253523,2.90695,2009.9,2009.6,2.90695]
[1617604257827,1.0077,2010.5,2009.9,82.1686]
[1617604258028,0.997,2011.2,2009.9,82.1686]
[1617604259528,2.997,2011.2,2009.9,82.1686]
[1617604259729,32.997,2011.2,2009.9,82.1686]
[1617604261333,32.997,2011.2,2010.0,2.90695]
[1617604261532,0.997,2011.2,2010.0,2.90695]
[1617604263336,0.997,2011.2,2010.3,2.90695]
[1617604265338,2.90695,2010.4,2010.3,2.90695]
[1617604265538,2.90695,2010.4,2009.9,82.1686]
[1617604269341,2.90695,2010.0,2009.9,85.07555]
[1617604270342,2.90695,2010.0,2008.6,5.16736996]
[1617604270343,5.73385,2010.0,2008.6,5.16736996]
[1617604270543,5.73385,2010.0,2009.7,59.4749]
[1617604271744,5.73385,2010.0,2009.5,2.90695]
[1617604271944,5.73385,2010.0,2008.5,56.9728]
[1617604272748,2.0,2009.9,2008.5,56.9728]
[1617604273346,2.0,2009.9,2008.7,2.90695]
[1617604274147,2.8269,2010.0,2008.7,2.90695]
[1617604274548,1.0041,2010.2,2008.7,2.90695]
[1617604275347,1.0041,2010.2,2009.4,2.90695]
[1617604276349,1.0041,2010.2,2009.6,80.6105]
[1617604277353,2.90695,2009.7,2009.6,80.6105]
[1617604278654,2.90695,2009.7,2008.4,5.19201518]
[1617604278855,2.90695,2009.7,2008.5,66.8256]
[1617604279451,1.8984,2010.0,2008.8,2.90695]
[1617604279653,82.4008,2010.2,2008.8,2.90695]
[1617604280054,30.0,2010.8,2009.5,60.7312]
[1617604280253,2.0,2010.7,2009.5,60.7312]
[1617604280454,30.0,2010.8,2009.5,60.7312]
[1617604281454,2.90695,2009.6,2009.5,60.7312]
[1617604281653,2.90695,2009.6,2009.4,2.90695]
[1617604281855,5.63455,2009.6,2008.5,75.76521268]
[1617604282254,35.63455,2009.6,2008.5,70.576]
[1617604282453,36.61755,2009.6,2008.5,70.576]
[1617604282854,2.0,2009.5,2008.5,70.576]
[1617604283453,2.90695,2008.6,2008.3,2.90695]
[1617604283653,5.01135,2008.6,2008.3,2.90695]